Workbook

Sheet Меню старшие 5-11 кл
A18: № рецептуры | B18: Наименование блюд | C18: Выход,г | D18: Белки, г | E18: Жиры, г | F18: Углеводы, г | G18: Калорийность, ккал | H18: Витамин B1, мг | I18: Витамин С, мг | J18: Витамин А, мг | K18: Витамин Е, мг | L18: Ca, мг | M18: P, мг | N18: Mg, мг | O18: Fe, мг
B19: 1-ая неделя
B20: 1 день
A21: ТТК | B21: Котлеты из мяса птицы с макаронными изделиями отварными, с маслом сливочным | C21: 90/150/5 | D21: 15.90 | E21: 17.23 | F21: 45.78 | G21: 387.30 | H21: 0.15 | I21: 0.94 | J21: 66.26 | K21: 3.34 | L21: 60.22 | M21: 123.75 | N21: 27.34 | O21: 2.12
A22: №349 Сбор.рец. На прод-ию для обуч. Во всех образ.учреж-Дели 2017 | B22: Компот из сухофруктов (75С) | C22: 200 | D22: 0.66 | E22: 0.09 | F22: 22.03 | G22: 92.80 | H22: 0.02 | I22: 0.73 | J22: 0.00 | K22: 0.51 | L22: 32.18 | M22: 23.44 | N22: 17.46 | O22: 0.67
A23: №421 Сбор.рец. На прод-ию для обуч. Во всех образ.учреж-Дели 2017 | B23: Сдоба обыкновенная | C23: 60 | D23: 1.64 | E23: 2.36 | F23: 8.15 | G23: 77.00 | H23: 0.07 | J23: 13.00 | K23: 0.69 | L23: 11.00 | M23: 37.00 | N23: 14.50 | O23: 0.69
A24: Хим.состав и калорийность российских продуктов питания,табл 6, стр 144 , 2012 Дели + | B24: Хлеб ржаной | C24: 45 | D24: 2.97 | E24: 0.54 | F24: 17.82 | G24: 89.10 | H24: 0.08 | I24: 0.00 | J24: 0.00 | K24: 0.63 | L24: 13.05 | M24: 67.50 | N24: 21.15 | O24: 1.76
B25: Итого: | C25: 550 | D25: =D21+D22+D22+D23+D24 -> 21.83 | E25: 22.05 | F25: =SUM(F21:F24) -> 93.78 | G25: 646.20 | H25: 0.31 | I25: 1.66 | J25: 79.26 | K25: 5.17 | L25: 116.45 | M25: 251.69 | N25: 80.45 | O25: 5.24
B27: 2 день
A28: Хим.состав и калорийность российских продуктов питания табл 9 стр 184 , 2012 Дели + | B28: Плоды и ягоды свежие (яблоки) | C28: 100 | D28: 0.40 | E28: 0.40 | F28: 9.80 | G28: 47.00 | H28: 0.03 | I28: 10.00 | K28: 0.20 | L28: 16.00 | M28: 11.00 | N28: 9.00 | O28: 2.20
A29: № 175 Сбор.рец. На прод-ию для обуч. Во всех образ.учреж-Дели 2017 | B29: Каша "Дружба" молочная с маслом сливочным | C29: 180/3 | D29: 5.42 | E29: 5.89 | F29: 30.05 | G29: 194.40 | H29: 0.09 | I29: 0.86 | J29: 25.32 | K29: 0.10 | L29: 118.60 | M29: 139.25 | N29: 33.50 | O29: 0.72
A30: № 219 Сбор.рец. На прод-ию для обуч. Во всех образ.учреж-Дели -2017 | B30: Сырники из творога | C30: 50 | D30: 8.73 | E30: 10.70 | F30: 8.24 | G30: 157.00 | H30: 0.03 | I30: 0.13 | J30: 45.50 | K30: 0.29 | L30: 73.51 | M30: 104.81 | N30: 11.79 | O30: 0.41
A31: № 376 Сбор.рец. На прод-ию для обуч. Во всех образ.учреж-Дели 2017 | B31: Чай с сахаром | C31: 190/10 | D31: 0.07 | E31: 0.02 | F31: 10.01 | G31: 40.00 | H31: 0.00 | I31: 0.03 | J31: 0.00 | K31: 0.00 | L31: 10.95 | M31: 2.80 | N31: 1.40 | O31: 0.27
A32: Хим.состав и калорийность российских продуктов питания,табл 6, стр 144 , 2012 Дели + | B32: Хлеб ржаной | C32: 40 | D32: 2.64 | E32: 0.48 | F32: 15.84 | G32: 79.20 | H32: 0.07 | I32: 0.00 | J32: 0.00 | K32: 0.56 | L32: 11.60 | M32: 60.00 | N32: 18.80 | O32: 1.56
B33: Итого: | C33: 573 | D33: =SUM(D28:D32) -> 17.26 | E33: 17.49 | F33: 73.94 | G33: 517.60 | H33: 0.22 | I33: 11.02 | J33: 70.82 | K33: 1.15 | L33: 230.66 | M33: 317.86 | N33: 74.49 | O33: 5.15
B35: 3 день
A36: № 260 Сбор.рец. На прод-ию для обуч. Во всех образ.учреж-Дели -2017 | B36: Гуляш из говядины | C36: 50/50 | D36: 10.39 | E36: 14.79 | F36: 10.30 | G36: 221.00 | H36: 0.03 | I36: 0.92 | K36: 2.61 | L36: 21.81 | M36: 154.15 | N36: 22.03 | O36: 3.06
A37: № 302 Сбор.рец. На прод-ию для обуч. Во всех образ.учреж-Дели 2017 | B37: Каша гречневая рассыпчатая | C37: 180 | D37: 4.55 | E37: 4.93 | F37: 47.71 | G37: 276.60 | H37: 0.25 | I37: 0.00 | J37: 12.00 | K37: 0.51 | L37: 29.51 | M37: 249.72 | N37: 168.62 | O37: 5.66
A38: № 377 Сбор.рец. На прод-ию для обуч. Во всех образ.учреж-Дели 2017 | B38: Чай с сахаром, с лимоном | C38: 185/10/5 | D38: 0.11 | E38: 0.02 | F38: 10.15 | G38: 41.32 | H38: -0.00 | I38: 2.03 | J38: 0.00 | K38: 0.01 | L38: 13.25 | M38: 3.96 | N38: 2.16 | O38: 0.33
A39: ТТК | B39: Булочка с сыром | C39: 60 | D39: 3.96 | E39: 3.25 | F39: 15.91 | G39: 78.33 | H39: 0.06 | I39: 0.07 | J39: 23.00 | K39: 2.37 | L39: 109.90 | M39: 95.00 | N39: 19.20 | O39: 0.72
A40: Хим.состав и калорийность российских продуктов питания,табл 6, стр 144 , 2012 Дели + | B40: Хлеб ржаной | C40: 40 | D40: 2.64 | E40: 0.48 | F40: 15.84 | G40: 79.20 | H40: 0.07 | I40: 0.00 | J40: 0.00 | K40: 0.56 | L40: 11.60 | M40: 60.00 | N40: 18.80 | O40: 1.56
B41: Итого: | C41: 580 | D41: =SUM(D36:D40) -> 21.65 | E41: =SUM(E36:E40) -> 23.46 | F41: 99.91 | G41: 696.45 | H41: 0.41 | I41: 3.02 | J41: 35.00 | K41: 6.06 | L41: 186.07 | M41: 562.83 | N41: 230.81 | O41: 11.33
B46: 4 день
A47: № 52 Сбор.рец. На прод-ию для обуч. Во всех образ.учреж-Дели -2017 | B47: Салат из свеклы отварной с маслом растительным | C47: 100 | D47: 1.41 | E47: 6.01 | F47: 8.26 | G47: 92.80 | H47: 0.02 | I47: 6.65 | J47: 0.00 | K47: 2.70 | L47: 35.46 | M47: 40.63 | N47: 20.70 | O47: 1.32
A48: ТТК | B48: Котлета из мяса птицы с картофельное пюре, с маслом сливочным | C48: 90/150/3 | D48: ='[1]Меню младшие 1-4 кл'!D85+'[1]Меню младшие 1-4 кл'!D86 -> 14.31 | E48: ='[1]Меню младшие 1-4 кл'!E85+'[1]Меню младшие 1-4 кл'!E86 -> 16.48 | F48: ='[1]Меню младшие 1-4 кл'!F85+'[1]Меню младшие 1-4 кл'!F86 -> 44.58 | G48: ='[1]Меню младшие 1-4 кл'!G85+'[1]Меню младшие 1-4 кл'!G86 -> 400.80 | H48: ='[1]Меню младшие 1-4 кл'!H85+'[1]Меню младшие 1-4 кл'!H86 -> 0.28 | I48: ='[1]Меню младшие 1-4 кл'!I85+'[1]Меню младшие 1-4 кл'!I86 -> 25.15 | J48: ='[1]Меню младшие 1-4 кл'!J85+'[1]Меню младшие 1-4 кл'!J86 -> 58.26 | K48: ='[1]Меню младшие 1-4 кл'!K85+'[1]Меню младшие 1-4 кл'!K86 -> 2.79 | L48: ='[1]Меню младшие 1-4 кл'!L85+'[1]Меню младшие 1-4 кл'!L86 -> 97.85 | M48: ='[1]Меню младшие 1-4 кл'!M85+'[1]Меню младшие 1-4 кл'!M86 -> 201.45 | N48: ='[1]Меню младшие 1-4 кл'!N85+'[1]Меню младшие 1-4 кл'!N86 -> 55.72 | O48: ='[1]Меню младшие 1-4 кл'!O85+'[1]Меню младшие 1-4 кл'!O86 -> 2.61
A49: № 376 Сбор.рец. На прод-ию для обуч. Во всех образ.учреж-Дели 2017 | B49: Чай с сахаром, с яблоком | C49: 180/10/10 | D49: 0.11 | E49: 0.06 | F49: 10.98 | G49: 44.70 | H49: 0.00 | I49: 1.03 | J49: 0.00 | K49: 0.02 | L49: 12.55 | M49: 3.90 | N49: 2.30 | O49: 0.48
A50: Хим.состав и калорийность российских продуктов питания табл 6 стр 134 , 2012 Дели + | B50: Хлеб пшеничный | C50: 30 | D50: 2.28 | E50: 0.24 | F50: 14.76 | G50: 70.50 | H50: 0.03 | I50: 0.00 | J50: 0.00 | K50: 0.33 | L50: 6.00 | M50: 19.50 | N50: 4.20 | O50: 0.33
A51: Хим.состав и калорийность российских продуктов питания,табл 6, стр 144 , 2012 Дели + | B51: Хлеб ржаной | C51: 30 | D51: 1.98 | E51: 0.36 | F51: 11.88 | G51: 59.40 | H51: 0.05 | I51: 0.00 | J51: 0.00 | K51: 0.42 | L51: 8.70 | M51: 45.00 | N51: 14.10 | O51: 1.17
B52: Итого: | C52: 603 | D52: =D47+D47+D48+D49+D50+D51 -> 21.50 | E52: =E47+E48+E49+E50+E51 -> 23.15 | F52: =F47+F47+F48+F49+F50+F51 -> 98.72 | G52: =G47+G48+G49+G50+G51 -> 668.20 | H52: =H47+H48+H49+H50+H51 -> 0.38 | I52: 32.83 | J52: 58.26 | K52: 6.26 | L52: 160.56 | M52: 310.48 | N52: 97.02 | O52: 5.92
B54: 5 день
A55: Хим.состав и калорийность российских продуктов питания табл 9 стр 184 , 2012 Дели + | B55: Плоды и ягоды свежие (яблоки) | C55: 100 | D55: 0.40 | E55: 0.40 | F55: 9.80 | G55: 47.00 | H55: 0.03 | I55: 10.00 | K55: 0.20 | L55: 16.00 | M55: 11.00 | N55: 9.00 | O55: 2.20
A56: №279,331 Сбор.рец. На прод-ию для питания детей в дошк образоват учрежд-Дели 2017 | B56: Тефтели мясные в сметанно-томатном соусе | C56: 60/40 | D56: 7.28 | E56: 11.940 | F56: 8.360 | G56: 124 | H56: 0.048 | I56: 0.276 | J56: 29.620 | K56: 0.4205 | L56: 20.726 | M56: 80.202 | N56: 15.521 | O56: 0.640
A57: № 202 Сбор.рец. На прод-ию для обуч. Во всех образ.учреж-Дели 2017 | B57: Макаронные изделия отварные | C57: 180 | D57: 6.79 | E57: 0.803 | F57: 38.304 | G57: 188 | H57: 0.068 | I57: 0.000 | J57: 0.000 | K57: 0.927 | L57: 13.430 | M57: 44.601 | N57: 10.343 | O57: 1.022
A58: № 376 Сбор.рец. На прод-ию для обуч. Во всех образ.учреж-Дели 2017 | B58: Чай с сахаром | C58: 190/10 | D58: 0.07 | E58: 0.02 | F58: 10.01 | G58: 40.00 | H58: 0.00 | I58: 0.03 | J58: 0.00 | K58: 0.00 | L58: 10.95 | M58: 2.80 | N58: 1.40 | O58: 0.27
A59: Хим.состав и калорийность российских продуктов питания,табл 6, стр 144 , 2012 Дели + | B59: Хлеб ржаной | C59: 40 | D59: 2.64 | E59: 0.48 | F59: 15.84 | G59: 79.20 | H59: 0.07 | I59: 0.00 | J59: 0.00 | K59: 0.56 | L59: 11.60 | M59: 60.00 | N59: 18.80 | O59: 1.56
B60: Итого: | C60: 630 | D60: =SUM(D55:D59) -> 17.19 | E60: 17.64 | F60: =F55+F57+F58+F59 -> 73.95 | G60: =G55+G56+G57+G58+G58+G59 -> 517.75 | H60: =SUM(H55:H59) -> 0.21 | I60: 10.31 | J60: 29.62 | K60: 2.11 | L60: 72.71 | M60: 198.60 | N60: 55.06 | O60: 5.69
B62: 6 день
A63: № 234, 304 Сбор.рец. На прод-ию для обуч. Во всех образ.учреж-Дели 2015 | B63: Биточки рыбные с рисом рассыпчатым с маслом сливочным | C63: 90/150/3 | D63: ='[1]Меню младшие 1-4 кл'!D103+'[1]Меню младшие 1-4 кл'!D104 -> 16.80 | E63: ='[1]Меню младшие 1-4 кл'!E103+'[1]Меню младшие 1-4 кл'!E104 -> 17.20 | F63: ='[1]Меню младшие 1-4 кл'!F103+'[1]Меню младшие 1-4 кл'!F104 -> 53.36 | G63: ='[1]Меню младшие 1-4 кл'!G103+'[1]Меню младшие 1-4 кл'!G104 -> 416.65 | H63: ='[1]Меню младшие 1-4 кл'!H103+'[1]Меню младшие 1-4 кл'!H104 -> 0.12 | I63: ='[1]Меню младшие 1-4 кл'!I103+'[1]Меню младшие 1-4 кл'!I104 -> 0.94 | J63: ='[1]Меню младшие 1-4 кл'!J103+'[1]Меню младшие 1-4 кл'!J104 -> 58.26 | K63: ='[1]Меню младшие 1-4 кл'!K103+'[1]Меню младшие 1-4 кл'!K104 -> 2.81 | L63: ='[1]Меню младшие 1-4 кл'!L103+'[1]Меню младшие 1-4 кл'!L104 -> 53.86 | M63: ='[1]Меню младшие 1-4 кл'!M103+'[1]Меню младшие 1-4 кл'!M104 -> 163.90 | N63: ='[1]Меню младшие 1-4 кл'!N103+'[1]Меню младшие 1-4 кл'!N104 -> 44.18 | O63: ='[1]Меню младшие 1-4 кл'!O103+'[1]Меню младшие 1-4 кл'!O104 -> 1.79
A64: ТТК | B64: Квашеная капуста (доп. гарнир) | C64: 50 | D64: ='[1]Меню младшие 1-4 кл'!D102/1.2 -> 0.85 | E64: ='[1]Меню младшие 1-4 кл'!E102/1.2 -> 2.50 | F64: ='[1]Меню младшие 1-4 кл'!F102/1.2 -> 4.23 | G64: ='[1]Меню младшие 1-4 кл'!G102/1.2 -> 42.85 | H64: ='[1]Меню младшие 1-4 кл'!H102/1.2 -> 0.01 | I64: ='[1]Меню младшие 1-4 кл'!I102/1.2 -> 9.91 | J64: ='[1]Меню младшие 1-4 кл'!J102/1.2 -> 0.00 | K64: ='[1]Меню младшие 1-4 кл'!K102/1.2 -> 7.70 | L64: ='[1]Меню младшие 1-4 кл'!L102/1.2 -> 26.12 | M64: ='[1]Меню младшие 1-4 кл'!M102/1.2 -> 16.98 | N64: ='[1]Меню младшие 1-4 кл'!N102/1.2 -> 8.01 | O64: ='[1]Меню младшие 1-4 кл'!O102/1.2 -> 0.33
A65: № 377 Сбор.рец. На прод-ию для обуч. Во всех образ.учреж-Дели 2017 | B65: Чай с сахаром, с лимоном | C65: 185/10/5 | D65: 0.11 | E65: 0.02 | F65: 10.15 | G65: 41.32 | H65: -0.00 | I65: 2.03 | J65: 0.00 | K65: 0.01 | L65: 13.25 | M65: 3.96 | N65: 2.16 | O65: 0.33
A66: Хим.состав и калорийность российских продуктов питания табл 6 стр 134 , 2012 Дели + | B66: Хлеб пшеничный | C66: 30 | D66: 2.28 | E66: 0.24 | F66: 14.76 | G66: 70.50 | H66: 0.03 | I66: 0.00 | J66: 0.00 | K66: 0.33 | L66: 6.00 | M66: 19.50 | N66: 4.20 | O66: 0.33
A67: Хим.состав и калорийность российских продуктов питания,табл 6, стр 144 , 2012 Дели + | B67: Хлеб ржаной | C67: 40 | D67: 2.64 | E67: 0.48 | F67: 15.84 | G67: 79.20 | H67: 0.07 | I67: 0.00 | J67: 0.00 | K67: 0.56 | L67: 11.60 | M67: 60.00 | N67: 18.80 | O67: 1.56
B68: Итого: | C68: 563 | D68: =D63+D64+D65+D66+D67 -> 22.68 | E68: =E63+E64+E64+E65+E66+E67 -> 22.95 | F68: =F63+F64+F65+F66+F67 -> 98.34 | G68: 650.52 | H68: 0.23 | I68: 12.87 | J68: 58.26 | K68: 11.41 | L68: 110.83 | M68: 264.33 | N68: 77.34 | O68: 4.34
B69: Итого за 6 дней 1 недели: | C69: =C25+C33+C41+C52+C68+C60 -> 3499 | D69: 122.11 | E69: 126.74 | F69: 538.65 | G69: 3696.72 | H69: 1.77 | I69: 71.71 | J69: 331.22 | K69: 32.16 | L69: 877.27 | M69: 1905.80 | N69: 615.17 | O69: 37.66
A80: № рецептуры | B80: Наименование блюд | C80: Выход,г | D80: Белки, г | E80: Жиры, г | F80: Углеводы, г | G80: Калорийность, ккал | H80: Витамин B1, мг | I80: Витамин С, мг | J80: Витамин А, мг | K80: Витамин Е, мг | L80: Ca, мг | M80: P, мг | N80: Mg, мг | O80: Fe, мг
B81: 2-ая неделя
B82: 1 день
A83: ТТК | B83: Птица запеченная | C83: 100 | D83: 9.93 | E83: 11.02 | F83: 0.06 | G83: 144.80 | H83: 0.06 | I83: 1.36 | J83: 53.60 | K83: 0.84 | L83: 43.50 | M83: 228.40 | N83: 24.64 | O83: 1.08
A84: № 182 Сбор.рец. На прод-ию для обуч. Во всех образ.учреж-Дели 2017 | B84: Каша пшенная молочная | C84: 200 | D84: 7.43 | E84: 4.46 | F84: 36.91 | G84: 219.00 | H84: 0.19 | I84: 1.17 | J84: 18.00 | K84: 0.11 | L84: 135.70 | M84: 181.37 | N84: 47.60 | O84: 1.21
A85: № 376 Сбор.рец. На прод-ию для обуч. Во всех образ.учреж-Дели 2017 | B85: Чай "Витаминный" с шиповником | C85: 185/10/5 | D85: 0.24 | E85: 0.09 | F85: 12.43 | G85: 54.20 | H85: 0.00 | I85: 50.03 | J85: 0.00 | K85: 0.19 | L85: 13.95 | M85: 3.65 | N85: 2.25 | O85: 0.42
A86: ТТК | B86: Плюшка с сахаром | C86: 60 | D86: 3.95 | E86: 4.06 | F86: 26.22 | G86: 141.50 | H86: 0.57 | I86: 0.00 | J86: 7.00 | K86: 1.63 | L86: 11.20 | M86: 38.30 | N86: 14.20 | O86: 0.70
A87: Хим.состав и калорийность российских продуктов питания,табл 6, стр 144 , 2012 Дели + | B87: Хлеб ржаной | C87: 30 | D87: 1.98 | E87: 0.36 | F87: 11.88 | G87: 59.40 | H87: 0.05 | I87: 0.00 | J87: 0.00 | K87: 0.42 | L87: 8.70 | M87: 45.00 | N87: 14.10 | O87: 1.17
B88: Итого: | C88: 590 | D88: =D83+D84+D85+D86+D87 -> 23.53 | E88: =E83+E84+E85+E86+E87 -> 19.99 | F88: 87.50 | G88: 618.90 | H88: 0.87 | I88: 52.56 | J88: 78.60 | K88: 3.19 | L88: 213.05 | M88: 496.72 | N88: 102.79 | O88: 4.58
B90: 2 день
A91: Хим.состав и калорийность российских продуктов питания табл 9 стр 184 , 2012 Дели + | B91: Плоды и ягоды свежие (яблоки) | C91: 100 | D91: 0.4 | E91: 0.4 | F91: 9.8 | G91: 47 | H91: 0.03 | I91: 10 | K91: 0.2 | L91: 16 | M91: 11 | N91: 9 | O91: 2.2
A92: № 265 Сбор.рец. На прод-ию для обуч. Во всех образ.учреж-Дели -2017 | B92: Плов из говядины с рисовой крупой | C92: 50/200 | D92: 18.97 | E92: 23.12 | F92: 51.79 | G92: 509.80 | H92: 0.08 | I92: 2.31 | J92: 0.00 | K92: 5.25 | L92: 22.04 | M92: 285.70 | N92: 63.75 | O92: 4.13
A93: № 376 Сбор.рец. На прод-ию для обуч. Во всех образ.учреж-Дели 2017 | B93: Чай с сахаром | C93: 190/10 | D93: 0.07 | E93: 0.02 | F93: 10.01 | G93: 40.00 | H93: 0.00 | I93: 0.03 | J93: 0.00 | K93: 0.00 | L93: 10.95 | M93: 2.80 | N93: 1.40 | O93: 0.27
A94: Хим.состав и калорийность российских продуктов питания табл 6 стр 134 , 2012 Дели + | B94: Хлеб пшеничный | C94: 20 | D94: 1.52 | E94: 0.16 | F94: 9.84 | G94: 47.00 | H94: 0.02 | I94: 0.00 | J94: 0.00 | K94: 0.22 | L94: 4.00 | M94: 13.00 | N94: 2.80 | O94: 0.22
A95: Хим.состав и калорийность российских продуктов питания,табл 6, стр 144 , 2012 Дели + | B95: Хлеб ржаной | C95: 30 | D95: 1.98 | E95: 0.36 | F95: 11.88 | G95: 59.40 | H95: 0.05 | I95: 0.00 | J95: 0.00 | K95: 0.42 | L95: 8.70 | M95: 45.00 | N95: 14.10 | O95: 1.17
B96: Итого: | C96: 550 | D96: =D91+D92+D93+D94+D95 -> 22.94 | E96: =E91+E92+E93+E94+E95 -> 24.06 | F96: 93.32 | G96: 703.20 | H96: 0.18 | I96: 12.34 | J96: 0.00 | K96: 6.09 | L96: 61.69 | M96: 357.50 | N96: 91.05 | O96: 7.99
B98: 3 день
A99: № 229 Сбор.рец. На прод-ию для обуч. Во всех образ.учреж-Дели 2017 | B99: Рыба, тушенная в томате с овощами | C99: 50/50 | D99: 9.75 | E99: 4.95 | F99: 3.80 | G99: 105.00 | H99: 0.05 | I99: 3.73 | J99: 5.82 | K99: 2.52 | L99: 39.07 | M99: 162.19 | N99: 48.53 | O99: 0.85
A100: № 312 Сбор.рец. На прод-ию для обуч. Во всех образ.учреж-Дели -2017 | B100: Пюре картофельное | C100: 180 | D100: 3.68 | E100: 5.76 | F100: 24.53 | G100: 164.70 | H100: 0.17 | I100: 21.79 | J100: 0.00 | K100: 0.22 | L100: 44.37 | M100: 103.91 | N100: 33.30 | O100: 1.21
A101: № 321 Сбор.рец. На прод-ию для обуч. Во всех образ.учреж-Дели -2017 | B101: Капуста тушеная (доп. гарнир) | C101: 50 | D101: 1.03 | E101: 1.62 | F101: 4.71 | G101: 37.55 | H101: 0.01 | I101: 8.58 | J101: 0.00 | K101: 0.87 | L101: 27.73 | M101: 20.07 | N101: 10.33 | O101: 0.40
A102: №342 Сбор.рец. На прод-ию для обуч. Во всех образ.учреж-Дели 2017 | B102: Компот из свежих яблок (75С) | C102: 200 | D102: 0.16 | E102: 0.16 | F102: 17.90 | G102: 74.60 | H102: 0.01 | I102: 0.90 | J102: 0.00 | K102: 0.08 | L102: 13.88 | M102: 4.40 | N102: 5.14 | O102: 0.92
A103: Хим.состав и калорийность российских продуктов питания табл 6 стр 134 , 2012 Дели + | B103: Хлеб пшеничный | C103: 30 | D103: 2.28 | E103: 0.24 | F103: 14.76 | G103: 70.50 | H103: 0.03 | I103: 0.00 | J103: 0.00 | K103: 0.33 | L103: 6.00 | M103: 19.50 | N103: 4.20 | O103: 0.33
A104: Хим.состав и калорийность российских продуктов питания,табл 6, стр 144 , 2012 Дели + | B104: Хлеб ржаной | C104: 30 | D104: 1.98 | E104: 0.36 | F104: 11.88 | G104: 59.40 | H104: 0.05 | I104: 0.00 | J104: 0.00 | K104: 0.42 | L104: 8.70 | M104: 45.00 | N104: 14.10 | O104: 1.17
B105: Итого: | C105: 590 | D105: =D99+D100+D101+D102+D103+D104 -> 18.88 | E105: =E99+E99+E100+E101+E102+E103+E104 -> 18.04 | F105: =F99+F100+F101+F102+F103+F104 -> 77.58 | G105: =G99+G100+G101+G101+G102+G103+G104 -> 549.30 | H105: 0.33 | I105: 35.00 | J105: 5.82 | K105: 4.43 | L105: 139.75 | M105: 355.07 | N105: 115.60 | O105: 4.89
B114: 4 день
A115: ТТК | B115: Тефтели куриные с гречневой крупой в сметанно-томатном соусе | C115: 60/40 | D115: 3.17 | E115: 5.19 | F115: 9.85 | G115: 118.01 | H115: 0.07 | I115: 0.28 | J115: 29.62 | K115: 0.46 | L115: 21.68 | M115: 92.80 | N115: 26.56 | O115: 1.04
A116: № 203 Сбор.рец. На прод-ию для обуч. Во всех образ.учреж-Дели 2017 | B116: Макаронные изделия отварные | C116: 200 | D116: 7.56 | E116: 0.84 | F116: 42.50 | G116: 208 | H116: 0.08 | I116: 0 | J116: 0 | K116: 1.04 | L116: 14.60 | M116: 49.6 | N116: 11.4 | O116: 1.12
A117: № 382 Сбор.рец. На прод-ию для обуч. Во всех образ.учреж-Дели 2017 | B117: Какао с молоком | C117: 200 | D117: 4.08 | E117: 3.54 | F117: 7.60 | G117: 78.60 | H117: 0.06 | I117: 1.59 | J117: 24.40 | K117: 0.00 | L117: 151.92 | M117: 124.56 | N117: 21.34 | O117: 0.45
A118: Хим.состав и калорийность российских продуктов питания табл 6 стр 134 , 2012 Дели + | B118: Хлеб пшеничный | C118: 20 | D118: 1.520 | E118: 0.160 | F118: 9.840 | G118: 47 | H118: 0.022 | I118: 0 | J118: 0 | K118: 0.220 | L118: 4.000 | M118: 13.000 | N118: 2.800 | O118: 0.220
A119: Хим.состав и калорийность российских продуктов питания,табл 6, стр 144 , 2012 Дели + | B119: Хлеб ржаной | C119: 30 | D119: 1.98 | E119: 0.36 | F119: 11.88 | G119: 59.40 | H119: 0.05 | I119: 0.00 | J119: 0.00 | K119: 0.42 | L119: 8.70 | M119: 45.00 | N119: 14.10 | O119: 1.17
B120: Итого: | C120: 550 | D120: =D115+D116+D117+D118+D119 -> 18.31 | E120: =E115+E115+E116+E117+E117+E118+E119 -> 18.83 | F120: =F115+F116+F118+F119 -> 74.07 | G120: =G115+G116+G117+G118+G118+G119 -> 558.01 | H120: =H115+H116+H117+H118+H119 -> 0.27 | I120: 1.86 | J120: 54.02 | K120: 2.14 | L120: 200.90 | M120: 324.96 | N120: 76.20 | O120: 4.00
B122: 5 день
A123: № 143,241 Сбор.рец. На прод-ию для обуч. Во всех образ.учреж-Дели 2017 | B123: Овощи тушеные с мясом | C123: 50/150 | D123: 12.48 | E123: 15.68 | F123: 19.34 | G123: 271.50 | H123: 0.12 | I123: 18.77 | J123: 39.00 | K123: 4.67 | L123: 59.15 | M123: 148.63 | N123: 39.69 | O123: 2.23
A124: №349 Сбор.рец. На прод-ию для обуч. Во всех образ.учреж-Дели 2017 | B124: Компот из сухофруктов (75С) | C124: 200 | D124: 0.66 | E124: 0.09 | F124: 22.03 | G124: 92.80 | H124: 0.02 | I124: 0.73 | J124: 0.00 | K124: 0.51 | L124: 32.18 | M124: 23.44 | N124: 17.46 | O124: 0.67
A125: №410 Сбор.рец. На прод-ию для обуч. Во всех образ.учреж-Дели 2017 | B125: Ватрушка с повидлом | C125: 75 | D125: 4.46 | E125: 2.98 | F125: 31.80 | G125: 182.00 | H125: 0.08 | I125: 0.08 | J125: 18.00 | K125: 0.86 | L125: 15.60 | M125: 42.80 | N125: 17.40 | O125: 1.08
A126: Хим.состав и калорийность российских продуктов питания табл 6 стр 134 , 2012 Дели + | B126: Хлеб пшеничный | C126: 35 | D126: 2.66 | E126: 0.28 | F126: 17.22 | G126: 82.25 | H126: 0.04 | I126: 0.00 | J126: 0.00 | K126: 0.39 | L126: 7.00 | M126: 22.75 | N126: 4.90 | O126: 0.39
A127: Хим.состав и калорийность российских продуктов питания,табл 6, стр 144 , 2012 Дели + | B127: Хлеб ржаной | C127: 40 | D127: 2.64 | E127: 0.48 | F127: 15.84 | G127: 79.20 | H127: 0.07 | I127: 0.00 | J127: 0.00 | K127: 0.56 | L127: 11.60 | M127: 60.00 | N127: 18.80 | O127: 1.56
B128: Итого: | C128: 550 | D128: =SUM(D123:D127) -> 22.90 | E128: =E123+E124+E125+E125+E126+E127 -> 22.49 | F128: 96.23 | G128: =SUM(G123:G127) -> 707.75 | H128: 0.32 | I128: 19.57 | J128: 57.00 | K128: 6.98 | L128: 125.53 | M128: 297.62 | N128: 98.25 | O128: 5.92
B130: 6 день
A131: Хим.состав и калорийность российских продуктов питания табл 9 стр 184 , 2012 Дели + | B131: Плоды и ягоды свежие (яблоки) | C131: 100 | D131: 0.40 | E131: 0.40 | F131: 9.80 | G131: 47.00 | H131: 0.03 | I131: 10.00 | K131: 0.20 | L131: 16.00 | M131: 11.00 | N131: 9.00 | O131: 2.20
A132: ТТК | B132: Котлеты "Аппетитные" с кашей гречневой рассыпчатой с маслом сливочным | C132: 75/150/3 | D132: 16.12 | E132: 16.75 | F132: 44.63 | G132: 406.76 | H132: 0.26 | I132: 1.49 | J132: 71.98 | K132: 1.73 | L132: 41.59 | M132: 320.78 | N132: 154.60 | O132: 6.23
A133: № 377 Сбор.рец. На прод-ию для обуч. Во всех образ.учреж-Дели 2017 | B133: Чай с сахаром, с лимоном | C133: 185/10/5 | D133: 0.11 | E133: 0.02 | F133: 10.15 | G133: 41.32 | H133: -0.00 | I133: 2.03 | J133: 0.00 | K133: 0.01 | L133: 13.25 | M133: 3.96 | N133: 2.16 | O133: 0.33
A134: Хим.состав и калорийность российских продуктов питания,табл 6, стр 144 , 2012 Дели + | B134: Хлеб ржаной | C134: 30 | D134: 1.98 | E134: 0.36 | F134: 11.88 | G134: 59.40 | H134: 0.05 | I134: 0.00 | J134: 0.00 | K134: 0.42 | L134: 8.70 | M134: 45.00 | N134: 14.10 | O134: 1.17
B135: Итого: | C135: 558 | D135: =SUM(D131:D134) -> 18.61 | E135: =SUM(E131:E134) -> 17.53 | F135: 76.46 | G135: 554.48 | H135: 0.34 | I135: 13.52 | J135: 71.98 | K135: 2.35 | L135: 79.54 | M135: 380.74 | N135: 179.86 | O135: 9.93
B136: Итого за 6 дней 2 недели: | C136: =C88+C96+C105+C120+C128+C135 -> 3388 | D136: 125.1635667 | E136: 120.9363 | F136: 505.1536 | G136: 3691.64 | H136: 2.321866667 | I136: 134.8568952 | J136: 267.4191667 | K136: 25.18254524 | L136: 820.4583095 | M136: 2212.612738 | N136: 663.7444881 | O136: 37.30212857
B137: ВСЕГО за 12 дней: | C137: =C25+C33+C41+C52+C68+C60+C88+C96+C105+C120+C128+C135 -> 6887 | D137: 247.2782667 | E137: 247.6743 | F137: 1043.7991 | G137: 7388.36 | H137: 4.089 | I137: 206.5700952 | J137: 598.6391667 | K137: 57.33754524 | L137: 1697.72911 | M137: 4118.407788 | N137: 1278.914788 | O137: 74.96522857
B138: В среднем на 1 учащегося в день: | C138: =C137/12 -> 574 | D138: =D137/12 -> 20.61 | E138: =E137/12 -> 20.64 | F138: 86.98 | G138: 615.70 | H138: 0.34 | I138: 17.21 | J138: 49.89 | K138: 4.78 | L138: 141.48 | M138: 343.20 | N138: 106.58 | O138: 6.25

Sheet Лист1
